fUST/lending_fUST_20240803
["ID","MTS","AMOUNT","RATE_DAILY","PERIOD"]
[333933399,1722634253145,-500.0,0.00017534,2]
[333933400,1722634253154,-500.0,0.00017534,2]
[333933401,1722634253164,-500.0,0.00017534,2]
[333933402,1722634253173,-500.0,0.00017534,2]
[333933403,1722634253183,-500.0,0.00017534,2]
[333933404,1722634253192,-222.07569972,0.00017534,2]
[333933405,1722634253202,-1002.94,0.00017534,2]
[333933406,1722634253213,-521.98,0.00017534,2]
[333933407,1722634253222,-915.336689,0.00017534,2]
[333933408,1722634253232,-915.336689,0.00017534,2]
[333933409,1722634253241,-671.57,0.00017534,2]
[333933410,1722634253251,-655.530774,0.00017534,2]
[333933411,1722634253260,-271.27168,0.00017534,2]
[333933412,1722634253269,-655.530774,0.00017534,2]
[333933413,1722634253279,-560.13,0.00017534,2]
[333933414,1722634253288,-500.0,0.00017534,2]
[333933415,1722634253298,-151.0,0.00017534,2]
[333933416,1722634253307,-561.87284626,0.00017534,2]
[333933417,1722634253316,-500.0,0.00017534,2]
[333933418,1722634253326,-685.27,0.00017534,2]
[333933419,1722634253335,-653.26,0.00017534,2]
[333933420,1722634253344,-2615.77,0.00017534,2]
[333933421,1722634253353,-500.0,0.00017534,2]
[333933422,1722634253363,-954.1,0.00017534,2]
[333933423,1722634253372,-844.72,0.00017534,2]
[333933424,1722634253381,-790.16,0.00017534,2]
[333933425,1722634253390,-500.0,0.00017534,2]
[333933426,1722634253400,-500.0,0.00017534,2]
[333933427,1722634253409,-500.0,0.00017534,2]
[333933428,1722634253419,-525.05,0.00017807,2]
[333933429,1722634253433,-2301.46,0.00017807,2]
[333933430,1722634253444,-151.0,0.00017808,2]
[333933431,1722634253454,-500.0,0.00017808,2]
[333933432,1722634253463,-528.6,0.00017808,2]
[333933433,1722634253473,-500.0,0.00017808,2]
[333933434,1722634253483,-656.97,0.00017808,2]
[333933435,1722634253493,-210.348975,0.00017808,2]
[333933436,1722634253503,-210.348975,0.00017808,2]
[333933437,1722634253513,-151.0,0.00017808,2]
[333933438,1722634253524,-674.5,0.00017808,2]
[333933439,1722634253534,-707.39,0.00017808,2]
[333933440,1722634253545,-3342.56,0.00017808,2]
[333933441,1722634253554,-500.0,0.00017808,2]
[333933442,1722634253564,-500.0,0.00017808,2]
[333933443,1722634253575,-1440.92,0.00017808,2]
[333933444,1722634253585,-559.16,0.00017808,2]
[333933445,1722634253594,-731.41,0.00017808,2]
[333933446,1722634253605,-536.64,0.00017808,2]
[333933447,1722634253615,-500.0,0.00017808,2]
[333933448,1722634253625,-239.722713,0.00017808,2]
[333933449,1722634253635,-239.722713,0.00017808,2]
[333933450,1722634253645,-1188.46,0.00017808,2]
[333933451,1722634253655,-151.0,0.00017808,2]
[333933452,1722634253664,-1578.88,0.00017808,2]
[333933453,1722634253674,-151.0,0.00017808,2]
[333933454,1722634253684,-833.64,0.00017808,2]
[333933455,1722634253694,-500.0,0.00017808,2]
[333933456,1722634253704,-500.0,0.00017808,2]
[333933457,1722634253714,-500.0,0.00017808,2]
[333933458,1722634253724,-500.0,0.00017808,2]
[333933459,1722634253733,-500.0,0.00017808,2]
[333933460,1722634253743,-1002.94,0.00017808,2]
[333933461,1722634253753,-521.98,0.00017808,2]
[333933462,1722634253762,-671.57,0.00017808,2]
[333933463,1722634253772,-560.13,0.00017808,2]
[333933464,1722634253781,-500.0,0.00017808,2]
[333933465,1722634253791,-500.0,0.00017808,2]
[333933466,1722634253801,-685.27,0.00017808,2]
[333933467,1722634253810,-653.26,0.00017808,2]
[333933468,1722634253821,-2615.77,0.00017808,2]
[333933469,1722634253830,-500.0,0.00017808,2]
[333933470,1722634253839,-954.1,0.00017808,2]
[333933471,1722634253849,-844.72,0.00017808,2]
[333933472,1722634253859,-790.16,0.00017808,2]
[333933473,1722634253868,-500.0,0.00017808,2]
[333933474,1722634253878,-500.0,0.00017808,2]
[333933475,1722634253887,-500.0,0.00017808,2]
[333933476,1722634253897,-1826.51596998,0.0001784,2]
[333933477,1722634253906,-2889.0,0.0001795,2]
[333933478,1722634253916,-151.0,0.0001795,2]
[333933479,1722634253926,-358.0,0.00018,2]
[333933480,1722634253935,-525.05,0.00018081,2]
[333933481,1722634253944,-2301.46,0.00018081,2]
[333933482,1722634253954,-500.0,0.00018082,2]
[333933483,1722634253964,-528.6,0.00018082,2]
[333933484,1722634253974,-500.0,0.00018082,2]
[333933485,1722634253983,-656.97,0.00018082,2]
[333933486,1722634253992,-674.5,0.00018082,2]
[333933487,1722634254002,-707.39,0.00018082,2]
[333933488,1722634254012,-3342.56,0.00018082,2]
[333933489,1722634254023,-151.0,0.00018082,2]
[333933490,1722634254032,-500.0,0.00018082,2]
[333933491,1722634254042,-500.0,0.00018082,2]
[333933492,1722634254052,-1440.92,0.00018082,2]
[333933493,1722634254061,-559.16,0.00018082,2]
[333933494,1722634254071,-731.41,0.00018082,2]
[333933495,1722634254081,-536.64,0.00018082,2]
[333933496,1722634254090,-500.0,0.00018082,2]
[333933497,1722634254099,-1188.46,0.00018082,2]
[333933498,1722634254110,-1578.88,0.00018082,2]
[333933499,1722634254120,-833.64,0.00018082,2]
[333933500,1722634254130,-500.0,0.00018082,2]
[333933501,1722634254139,-500.0,0.00018082,2]
[333933502,1722634254151,-500.0,0.00018082,2]
[333933503,1722634254161,-500.0,0.00018082,2]
[333933504,1722634254170,-500.0,0.00018082,2]
[333933505,1722634254180,-1002.94,0.00018082,2]
[333933506,1722634254189,-521.98,0.00018082,2]
[333933507,1722634254198,-671.57,0.00018082,2]
[333933508,1722634254208,-560.13,0.00018082,2]
[333933509,1722634254218,-500.0,0.00018082,2]
[333933510,1722634254228,-500.0,0.00018082,2]
[333933511,1722634254238,-685.27,0.00018082,2]
[333933512,1722634254248,-653.26,0.00018082,2]
[333933513,1722634254258,-2615.77,0.00018082,2]
[333933514,1722634254267,-500.0,0.00018082,2]
[333933515,1722634254277,-954.1,0.00018082,2]
[333933516,1722634254287,-844.72,0.00018082,2]
[333933517,1722634254297,-790.16,0.00018082,2]
[333933518,1722634254307,-500.0,0.00018082,2]
[333933519,1722634254317,-500.0,0.00018082,2]
[333933520,1722634254326,-500.0,0.00018082,2]
[333933521,1722634254336,-364.5391865,0.00018082,2]
[333933522,1722634254345,-306.0,0.00018082,2]
[333933523,1722634254355,-20755.86411187,0.00018302,2]
[333933524,1722634254364,-244.0706029,0.00018302,2]
[333933525,1722634254374,-9675.60609712,0.00018346,2]
[333933526,1722634254467,-1091.44740037,0.00018346,2]
[333933527,1722634254477,-160.13724719,0.00018346,2]
[333933528,1722634254487,-3087.10662957,0.00018346,2]
[333933529,1722634254498,-525.05,0.00018355,2]
[333933530,1722634254507,-2301.46,0.00018355,2]
[333933531,1722634254517,-493.92155827,0.00018356,2]
[333933532,1722634254526,-528.6,0.00018356,2]
[333933533,1722634254535,-269.85241209,0.00018356,2]
[333933534,1722634254545,-656.97,0.00018356,2]
[333933535,1722634254555,-674.5,0.00018356,2]
[333933536,1722634254564,-707.39,0.00018356,2]
[333933537,1722634254574,-3342.56,0.00018356,2]
[333933538,1722634254586,-151.0,0.00018356,2]
[333933539,1722634254595,-520.38052726,0.00018356,2]
[333933540,1722634254606,-500.0,0.00018356,2]
[333933541,1722634254616,-1440.92,0.00018356,2]
[333933542,1722634254625,-559.16,0.00018356,2]
[333933543,1722634254636,-731.41,0.00018356,2]
[333933544,1722634254645,-536.64,0.00018356,2]
[333933545,1722634254655,-500.0,0.00018356,2]
[333933546,1722634254665,-1188.46,0.00018356,2]
[333933547,1722634254675,-1578.88,0.00018356,2]
[333933548,1722634254684,-833.64,0.00018356,2]
[333933549,1722634254694,-500.0,0.00018356,2]
[333933550,1722634254704,-383.37621062,0.00018356,2]
[333933551,1722634254714,-216.5072179,0.00018356,2]
[333933552,1722634254723,-500.0,0.00018356,2]
[333933553,1722634254733,-500.0,0.00018356,2]
[333933554,1722634254743,-1002.94,0.00018356,2]
[333933555,1722634254752,-521.98,0.00018356,2]
[333933556,1722634254762,-671.57,0.00018356,2]
[333933557,1722634254771,-560.13,0.00018356,2]
[333933558,1722634254781,-500.0,0.00018356,2]
[333933559,1722634254791,-500.0,0.00018356,2]
[333933560,1722634254800,-685.27,0.00018356,2]
[333933561,1722634254810,-653.26,0.00018356,2]
[333933562,1722634254819,-2615.77,0.00018356,2]
[333933563,1722634254829,-500.0,0.00018356,2]
[333933564,1722634254840,-795.644266,0.00018356,2]
[333933565,1722634254849,-954.1,0.00018356,2]
[333933566,1722634254859,-795.644266,0.00018356,2]
[333933567,1722634254869,-844.72,0.00018356,2]
[333933568,1722634254879,-790.16,0.00018356,2]
[333933569,1722634254889,-500.0,0.00018356,2]
[333933570,1722634254898,-2162.15296103,0.00018356,2]
[333933571,1722634254908,-500.0,0.00018356,2]
[333933572,1722634254918,-525.881845,0.00018356,2]
[333933573,1722634254927,-525.881845,0.00018356,2]
[333933574,1722634254936,-500.0,0.00018356,2]
[333933575,1722634254946,-2464.42678654,0.00018383,2]
[333933576,1722634254956,-261.1733593,0.00018402,2]
[333933577,1722634254966,-261.1733593,0.00018402,2]
[333933578,1722634254976,-3830.33709054,0.00018489,2]
[333933579,1722634254986,-2847.71475529,0.00018489,2]
[333933580,1722634254995,-13436.56438209,0.00018557,2]
[333933581,1722634255005,-1622.58264401,0.00018557,2]
[333933582,1722634255015,-2124.13912697,0.00018557,2]
[333933583,1722634255024,-7773.32703226,0.00018557,2]
[333933584,1722634255034,-7773.32703226,0.00018557,2]
[333933585,1722634255044,-1794.27731273,0.00018557,2]
[333933586,1722634255055,-525.05,0.00018629,2]
[333933587,1722634255075,-1714.52513684,0.00018629,2]
[333933588,1722634255084,-2301.46,0.00018629,2]
[333933589,1722634255094,-4371.93866124,0.00018629,3]
[333933590,1722634255104,-2138.73869103,0.00018629,2]
[333933591,1722634255117,-528.6,0.0001863,2]
[333933592,1722634255126,-656.97,0.0001863,2]
[333933593,1722634255136,-674.5,0.0001863,2]
[333933594,1722634255146,-707.39,0.0001863,2]
[333933595,1722634255158,-151.0,0.0001863,2]
[333933596,1722634255168,-3342.56,0.0001863,2]
[333933597,1722634255178,-151.0,0.0001863,2]
[333933598,1722634255188,-500.0,0.0001863,2]
[333933599,1722634255197,-1440.92,0.0001863,2]
[333933600,1722634255206,-559.16,0.0001863,2]
[333933601,1722634255215,-731.41,0.0001863,2]
[333933602,1722634255225,-536.64,0.0001863,2]
[333933603,1722634255234,-500.0,0.0001863,2]
[333933604,1722634255244,-1188.46,0.0001863,2]
[333933605,1722634255254,-1578.88,0.0001863,2]
[333933606,1722634255264,-833.64,0.0001863,2]
[333933607,1722634255273,-500.0,0.0001863,2]
[333933608,1722634255282,-500.0,0.0001863,2]
[333933609,1722634255293,-500.0,0.0001863,2]
[333933610,1722634255302,-1002.94,0.0001863,2]
[333933611,1722634255312,-521.98,0.0001863,2]
[333933612,1722634255323,-671.57,0.0001863,2]
[333933613,1722634255333,-560.13,0.0001863,2]
[333933614,1722634255342,-500.0,0.0001863,2]
[333933615,1722634255352,-500.0,0.0001863,2]
[333933616,1722634255361,-685.27,0.0001863,2]
[333933617,1722634255370,-653.26,0.0001863,2]
[333933618,1722634255379,-2615.77,0.0001863,2]
[333933619,1722634255389,-500.0,0.0001863,2]
[333933620,1722634255399,-954.1,0.0001863,2]
[333933621,1722634255408,-844.72,0.0001863,2]
[333933622,1722634255418,-790.16,0.0001863,2]
[333933623,1722634255432,-500.0,0.0001863,2]
[333933624,1722634255442,-500.0,0.0001863,2]
[333933625,1722634255451,-186.53834446,0.0001863,2]
[333933626,1722634255461,-813.006301,0.00018657,2]
[333933627,1722634255472,-813.006301,0.00018657,2]
[333933628,1722634255481,-172.582039,0.00018657,2]
[333933629,1722634255491,-172.582039,0.00018657,2]
[333933630,1722634255500,-531.98344373,0.00018658,2]
[333933631,1722634255509,-151.0,0.00018667,2]
[333933632,1722634255518,-192.464676,0.00018667,2]
[333933633,1722634255529,-915.336689,0.00018667,2]
[333933634,1722634255539,-915.336689,0.00018667,2]
[333933635,1722634255548,-655.530774,0.00018667,2]
[333933636,1722634255558,-655.530774,0.00018667,2]
[333933637,1722634255583,-151.0,0.00018667,2]
[333933638,1722634255593,-1382.67089992,0.00018667,2]
[333933639,1722634255603,-239.722713,0.00018679,2]
[333933640,1722634255613,-239.722713,0.00018679,2]
[333933641,1722634255623,-151.0,0.00018679,2]
[333933642,1722634255632,-1438.00560066,0.00018679,2]
[333933643,1722634255642,-1610.37989416,0.00018679,2]
[333933644,1722634255651,-151.0,0.00018696,2]
[333933645,1722634255661,-151.0,0.00018773,2]
[333933646,1722634255670,-151.0,0.00018773,2]
[333933647,1722634255680,-151.0,0.00018773,2]
[333933648,1722634255689,-816.12306889,0.00018773,2]
[333933649,1722634255699,-373.3966575,0.00018786,2]
[333933650,1722634255708,-652.17191439,0.000188,15]
[333933651,1722634255718,-430.8713912,0.00018811,2]
[333933652,1722634255727,-550.042498,0.00018899,2]
[333933653,1722634255739,-151.0,0.000189,2]
[333933654,1722634255749,-210.348975,0.000189,2]
[333933655,1722634255759,-210.348975,0.000189,2]
[333933656,1722634255769,-151.0,0.000189,2]
[333933657,1722634255778,-1879.75,0.000189,31]
[333933658,1722634255787,-1879.75,0.000189,31]
[333933659,1722634255796,-1879.75,0.000189,31]
[333933660,1722634255806,-1879.75,0.000189,31]
[333933661,1722634255816,-1879.75,0.000189,31]
[333933662,1722634255825,-1879.75,0.000189,31]
[333933663,1722634255834,-1879.75,0.000189,31]
[333933664,1722634255844,-1879.75,0.000189,31]
[333933665,1722634255853,-1879.75,0.000189,31]
[333933666,1722634255862,-1879.75,0.000189,31]
[333933667,1722634255872,-1879.75,0.000189,31]
[333933668,1722634255881,-1879.75,0.000189,31]
[333933669,1722634255891,-1879.75,0.000189,31]
[333933670,1722634255900,-1879.75,0.000189,31]
[333933671,1722634255909,-1879.75,0.000189,31]
[333933672,1722634255919,-1879.75,0.000189,31]
[333933673,1722634255928,-1879.75,0.000189,31]
[333933674,1722634255938,-1879.75,0.000189,31]
[333933675,1722634255948,-1879.75,0.000189,31]
[333933676,1722634255957,-1879.75,0.000189,31]
[333933677,1722634255967,-525.05,0.00018903,2]
[333933678,1722634255977,-2301.46,0.00018903,2]
[333933679,1722634255986,-528.6,0.00018904,2]
[333933680,1722634255995,-656.97,0.00018904,2]
[333933681,1722634256005,-674.5,0.00018904,2]
[333933682,1722634256014,-707.39,0.00018904,2]
[333933683,1722634256024,-151.0,0.00018904,2]
[333933684,1722634256033,-3342.56,0.00018904,2]
[333933685,1722634256042,-151.0,0.00018904,2]
[333933686,1722634256051,-630.12078964,0.00018904,2]
[333933687,1722634256062,-1440.92,0.00018904,2]
[333933688,1722634256087,-559.16,0.00018904,2]
[333933689,1722634256097,-731.41,0.00018904,2]
[333933690,1722634256106,-536.64,0.00018904,2]
[333933691,1722634256116,-500.0,0.00018904,2]
[333933692,1722634256125,-1188.46,0.00018904,2]
[333933693,1722634256134,-1578.88,0.00018904,2]
[333933694,1722634256145,-833.64,0.00018904,2]
[333933695,1722634256154,-500.0,0.00018904,2]
[333933696,1722634256164,-500.0,0.00018904,2]
[333933697,1722634256173,-500.0,0.00018904,2]
[333933698,1722634256183,-1002.94,0.00018904,2]
[333933699,1722634256192,-521.98,0.00018904,2]
[333933700,1722634256202,-671.57,0.00018904,2]
[333933701,1722634256211,-560.13,0.00018904,2]
[333933702,1722634256221,-500.0,0.00018904,2]
[333933703,1722634256230,-500.0,0.00018904,2]
[333933704,1722634256240,-685.27,0.00018904,2]
[333933705,1722634256249,-653.26,0.00018904,2]
[333933706,1722634256259,-2615.77,0.00018904,2]
[333933707,1722634256269,-500.0,0.00018904,2]
[333933708,1722634256278,-795.644266,0.00018904,2]
[333933709,1722634256287,-954.1,0.00018904,2]
[333933710,1722634256297,-795.644266,0.00018904,2]
[333933711,1722634256306,-844.72,0.00018904,2]
[333933712,1722634256315,-790.16,0.00018904,2]
[333933713,1722634256325,-500.0,0.00018904,2]
[333933714,1722634256335,-500.0,0.00018904,2]
[333933715,1722634256344,-130.68718379,0.00018904,2]
[333933716,1722634256489,-500.0,0.00013698,2]
[333933717,1722634256498,-102.78256871,0.00013698,2]
[333933718,1722634256510,-397.21743129,0.00013698,2]
[333933719,1722634256521,-172.4568,0.00014147,2]
[333933720,1722634256530,-121.34939605,0.00014147,2]
[333933721,1722634256557,-31.37730495,0.00014147,2]
[333933722,1722634256577,-172.4568,0.00014323,2]
[333933723,1722634256591,-152.726701,0.00014323,2]
[333933724,1722634256600,-172.4568,0.000145,2]
[333933725,1722634256609,-500.0,0.0001452,2]
[333933726,1722634256620,-500.0,0.00014794,2]
[333933727,1722634256629,-154.77557542,0.00015707,2]
[333933728,1722634256638,-1406.90681863,0.00015951,2]
[333933731,1722634314274,183.07617468,9.999e-05,2]
[333933739,1722634389981,290.23456101,9.999e-05,2]
[333933740,1722634398281,183.07617468,9.999e-05,2]
[333933741,1722634398602,196.26752996,9.999e-05,2]
[333933742,1722634477092,2085.0,0.00027,120]
[333933743,1722634487784,167.90804222,9.999e-05,2]
[333933744,1722634529282,502.13135298,0.00027,120]
[333933880,1722635433928,-300.0,0.00011974,2]
[333933882,1722635433939,-14673.948,0.00011975,2]
[333933957,1722635438482,-10226.052,0.00011975,2]
[333933958,1722635438492,-220.988732,0.00012273,2]
[333933959,1722635438502,-220.988732,0.00012307,2]
[333933960,1722635438512,-220.988732,0.0001234,2]
[333933961,1722635438522,-220.988732,0.00012374,2]
[333933962,1722635438531,-220.988732,0.00012408,2]
[333933963,1722635438540,-220.988732,0.00012441,2]
[333933964,1722635438549,-220.988732,0.00012475,2]
[333933965,1722635438559,-220.988732,0.00012509,2]
[333933966,1722635438569,-220.988732,0.00012542,2]
[333933967,1722635438578,-220.988732,0.00012576,2]
[333933968,1722635438588,-220.988732,0.0001261,2]
[333933969,1722635438597,-220.988732,0.00012643,2]
[333933970,1722635438606,-220.988732,0.00012677,2]
[333933971,1722635438616,-220.988732,0.00012711,2]
[333933972,1722635438625,-220.988732,0.00012744,2]
[333933973,1722635438634,-220.988732,0.00012778,2]
[333933974,1722635438643,-220.988732,0.00012812,2]
[333933975,1722635438653,-3148.50797725,0.0001283,2]
[333933976,1722635438662,-220.988732,0.00012845,2]
[333933977,1722635438671,-220.988732,0.00012879,2]
[333933978,1722635438680,-2096.9567812,0.000129,2]
[333933979,1722635438690,-220.988732,0.00012913,2]
[333933981,1722635438699,-168.712693,0.00012986,2]
[333933983,1722635438708,-420.0,0.00013171,2]
[333933984,1722635438718,-16675.9323643,0.00013688,2]
[333933986,1722635438727,-500.0,0.00013698,2]
[333933988,1722635438736,-500.0,0.00013698,2]
[333933990,1722635438747,-500.0,0.00013698,2]
[333933991,1722635438757,-500.0,0.00013698,2]
[333933992,1722635438768,-153.56971352,0.00013698,2]
[333933993,1722635438777,-500.0,0.00013698,2]
[333933994,1722635438787,-500.0,0.00013698,2]
[333933995,1722635438796,-500.0,0.00013698,2]
[333933996,1722635438807,-500.0,0.00013698,2]
[333933997,1722635438820,-316.80870104,0.00013698,2]
[333933998,1722635438829,-443.4436512,0.00013698,2]
[333933999,1722635438839,-500.0,0.00013698,2]
[333934000,1722635438848,-500.0,0.00013698,2]
[333934001,1722635438858,-500.0,0.00013698,2]
[333934002,1722635438867,-500.0,0.00013698,2]
[333934003,1722635438878,-500.0,0.00013698,2]
[333934004,1722635438888,-500.0,0.00013698,2]
[333934005,1722635438897,-500.0,0.00013698,2]
[333934006,1722635438906,-318.92863212,0.00013698,2]
[333934007,1722635438918,-500.0,0.00013698,2]
[333934008,1722635438930,-500.0,0.00013698,2]
[333934009,1722635438940,-500.0,0.00013698,2]
[333934010,1722635438951,-500.0,0.00013698,2]
[333934011,1722635438961,-500.0,0.00013698,2]
[333934012,1722635438971,-500.0,0.00013698,2]
[333934013,1722635438983,-500.0,0.00013698,2]
[333934014,1722635438994,-500.0,0.00013698,2]
[333934015,1722635439006,-500.0,0.00013698,2]
[333934016,1722635439015,-500.0,0.00013698,2]
[333934017,1722635439025,-500.0,0.00013698,2]
[333934018,1722635439037,-458.75395012,0.00013698,2]
[333934019,1722635439047,-500.0,0.00013698,2]
[333934020,1722635439058,-500.0,0.00013698,2]
[333934021,1722635439070,-500.0,0.00013698,2]
[333934022,1722635439080,-500.0,0.00013698,2]
[333934023,1722635439094,-500.0,0.00013698,2]
[333934024,1722635439104,-500.0,0.00013698,2]
[333934025,1722635439115,-500.0,0.00013698,2]
[333934026,1722635439126,-500.0,0.00013698,2]
[333934027,1722635439137,-500.0,0.00013698,2]
[333934028,1722635439147,-500.0,0.00013698,2]
[333934029,1722635439157,-500.0,0.00013698,2]
[333934030,1722635439168,-500.0,0.00013698,2]
[333934032,1722635439179,-500.0,0.00013698,2]
[333934034,1722635439189,-500.0,0.00013698,2]
[333934036,1722635439198,-500.0,0.00013698,2]
[333934038,1722635439208,-500.0,0.00013698,2]
[333934040,1722635439217,-499.53830597,0.00013698,2]
[333934042,1722635439227,-500.0,0.00013698,2]
[333934043,1722635439236,-500.0,0.00013698,2]
[333934044,1722635439246,-500.0,0.00013698,2]
[333934046,1722635439255,-500.0,0.00013698,2]
[333934048,1722635439265,-500.0,0.00013698,2]
[333934050,1722635439276,-500.0,0.00013698,2]
[333934052,1722635439286,-500.0,0.00013698,2]
[333934054,1722635439295,-500.0,0.00013698,2]
[333934056,1722635439305,-500.0,0.00013698,2]
[333934058,1722635439315,-500.0,0.00013698,2]
[333934060,1722635439324,-500.0,0.00013698,2]
[333934062,1722635439333,-502.02012757,0.00013698,2]
[333934065,1722635439344,-270.72779516,0.00013698,2]
[333934067,1722635439354,-500.0,0.00013698,2]
[333934069,1722635439365,-500.0,0.00013698,2]
[333934071,1722635439376,-500.0,0.00013698,2]
[333934073,1722635439388,-500.0,0.00013698,2]
[333934075,1722635439399,-500.0,0.00013698,2]
[333934078,1722635439410,-500.0,0.00013698,2]
[333934080,1722635439421,-500.0,0.00013698,2]
[333934082,1722635439433,-583.0711377,0.00013698,2]
[333934084,1722635439443,-500.0,0.00013698,2]
[333934086,1722635439453,-500.0,0.00013698,2]
[333934088,1722635439462,-500.0,0.00013698,2]
[333934090,1722635439472,-165.21775422,0.00013698,2]
[333934092,1722635439482,-500.0,0.00013698,2]
[333934094,1722635439492,-500.0,0.00013698,2]
[333934096,1722635439501,-500.0,0.00013698,2]
[333934098,1722635439511,-500.0,0.00013698,2]
[333934100,1722635439521,-500.0,0.00013698,2]
[333934102,1722635439531,-500.0,0.00013698,2]
[333934104,1722635439540,-500.0,0.00013698,2]
[333934106,1722635439549,-216.54262552,0.00013698,2]
[333934108,1722635439559,-500.0,0.00013698,2]
[333934110,1722635439570,-500.0,0.00013698,2]
[333934112,1722635439579,-500.0,0.00013698,2]
[333934114,1722635439589,-500.0,0.00013698,2]
[333934116,1722635439599,-500.0,0.00013698,2]
[333934119,1722635439611,-500.0,0.00013698,2]
[333934121,1722635439621,-500.0,0.00013698,2]
[333934122,1722635439631,-500.0,0.00013698,2]
[333934124,1722635439642,-304.05644475,0.00013698,2]
[333934126,1722635439652,-500.0,0.00013698,2]
[333934127,1722635439661,-500.0,0.00013698,2]
[333934129,1722635439670,-500.0,0.00013698,2]
[333934131,1722635439680,-500.0,0.00013698,2]
[333934133,1722635439690,-500.0,0.00013698,2]
[333934135,1722635439701,-500.0,0.00013698,2]
[333934137,1722635439712,-500.0,0.00013698,2]
[333934140,1722635439723,-500.0,0.00013698,2]
[333934141,1722635439733,-500.0,0.00013698,2]
[333934143,1722635439743,-500.0,0.00013698,2]
[333934145,1722635439753,-500.0,0.00013698,2]
[333934147,1722635439762,-500.0,0.00013698,2]
[333934149,1722635439772,-500.0,0.00013698,2]
[333934151,1722635439783,-500.0,0.00013698,2]
[333934153,1722635439795,-500.0,0.00013698,2]
[333934155,1722635439805,-500.0,0.00013698,2]
[333934157,1722635439819,-500.0,0.00013698,2]
[333934159,1722635439829,-500.0,0.00013698,2]
[333934161,1722635439839,-500.0,0.00013698,2]
[333934163,1722635439849,-500.0,0.00013698,2]
[333934165,1722635439860,-500.0,0.00013698,2]
[333934167,1722635439870,-500.0,0.00013698,2]
[333934169,1722635439880,-1397.34,0.00013698,2]
[333934171,1722635439892,-500.0,0.00013698,2]
[333934173,1722635439902,-500.0,0.00013698,2]
[333934175,1722635439913,-500.0,0.00013698,2]
[333934177,1722635439924,-500.0,0.00013698,2]
[333934179,1722635439935,-500.0,0.00013698,2]
[333934181,1722635439948,-608.96,0.00013698,2]
[333934183,1722635439958,-500.0,0.00013698,2]
[333934185,1722635439968,-500.0,0.00013698,2]
[333934186,1722635439977,-691.97,0.00013698,2]
[333934187,1722635439988,-500.0,0.00013698,2]
[333934188,1722635439997,-500.0,0.00013698,2]
[333934189,1722635440007,-500.0,0.00013698,2]
[333934190,1722635440016,-500.0,0.00013698,2]
[333934191,1722635440026,-500.0,0.00013698,2]
[333934192,1722635440035,-500.0,0.00013698,2]
[333934193,1722635440044,-500.0,0.00013698,2]
[333934194,1722635440054,-500.0,0.00013698,2]
[333934195,1722635440064,-500.0,0.00013698,2]
[333934196,1722635440075,-500.0,0.00013698,2]
[333934197,1722635440084,-500.0,0.00013698,2]
[333934198,1722635440093,-500.0,0.00013698,2]
[333934199,1722635440102,-500.0,0.00013698,2]